[Event "*** Titled Tuesday Blitz"]
[Site "Chess.com"]
[Date "2019.10.01"]
[Round "10"]
[White "Kostya_Nikologorskiy"]
[Black "Korchmar_Vasiliy"]
[Result "1-0"]
[WhiteElo "2555"]
[BlackElo "2675"]
[TimeControl "180+2"]
[EndTime "15:27:08 PDT"]
[Termination "Kostya_Nikologorskiy won on time"]

1. d4 {[%clk 0:03:01.9]} 1... Nf6 {[%clk 0:03:00.2]} 2. c4 {[%clk 0:03:01.5]}
2... g6 {[%clk 0:03:01.5]} 3. Nc3 {[%clk 0:03:02.1]} 3... d5 {[%clk 0:03:02.7]}
4. Nf3 {[%clk 0:02:51]} 4... Bg7 {[%clk 0:03:02.9]} 5. e3 {[%clk 0:02:50]} 5...
O-O {[%clk 0:03:03.4]} 6. cxd5 {[%clk 0:02:44.4]} 6... Nxd5 {[%clk 0:03:03.7]}
7. Bc4 {[%clk 0:02:45.3]} 7... Nxc3 {[%clk 0:03:04.3]} 8. bxc3 {[%clk
0:02:46.2]} 8... c5 {[%clk 0:03:05.8]} 9. O-O {[%clk 0:02:46.5]} 9... b6 {[%clk
0:03:02.3]} 10. Qe2 {[%clk 0:02:33]} 10... Bb7 {[%clk 0:03:02.2]} 11. Rd1 {[%clk
0:02:23.3]} 11... Qc7 {[%clk 0:02:57.2]} 12. e4 {[%clk 0:02:23.6]} 12... Nc6
{[%clk 0:02:43]} 13. Be3 {[%clk 0:02:21.5]} 13... e6 {[%clk 0:02:36.4]} 14. Rac1
{[%clk 0:02:20.2]} 14... Rfd8 {[%clk 0:02:22]} 15. h4 {[%clk 0:02:01.9]} 15...
Rac8 {[%clk 0:01:29.1]} 16. h5 {[%clk 0:01:42.4]} 16... Na5 {[%clk 0:01:28.1]}
17. Bd3 {[%clk 0:01:42.5]} 17... cxd4 {[%clk 0:01:28.4]} 18. cxd4 {[%clk
0:01:40.8]} 18... Qd7 {[%clk 0:01:22.6]} 19. h6 {[%clk 0:01:34.1]} 19... Bf6
{[%clk 0:01:14.4]} 20. Bb5 {[%clk 0:01:20.4]} 20... Qe7 {[%clk 0:00:39.8]} 21.
e5 {[%clk 0:01:00.8]} 21... Bh8 {[%clk 0:00:40.7]} 22. a4 {[%clk 0:00:50.2]}
22... Nb3 {[%clk 0:00:31.2]} 23. Rxc8 {[%clk 0:00:50.1]} 23... Rxc8 {[%clk
0:00:33.1]} 24. Qd3 {[%clk 0:00:43.1]} 24... Bxf3 {[%clk 0:00:21.3]} 25. gxf3
{[%clk 0:00:45]} 25... Na5 {[%clk 0:00:22.5]} 26. f4 {[%clk 0:00:43.8]} 26...
Qh4 {[%clk 0:00:17.5]} 27. Qe2 {[%clk 0:00:39.8]} 27... Nb3 {[%clk 0:00:10.1]}
28. d5 {[%clk 0:00:35.5]} 28... exd5 {[%clk 0:00:09.4]} 29. Rxd5 {[%clk
0:00:37.4]} 29... Qxh6 {[%clk 0:00:07]} 30. Qg4 {[%clk 0:00:38.3]} 30... Qf8
{[%clk 0:00:06.1]} 31. f5 {[%clk 0:00:37.2]} 31... Nc5 {[%clk 0:00:03.6]} 32.
Bc4 {[%clk 0:00:27.2]} 32... Re8 {[%clk 0:00:02.5]} 33. fxg6 {[%clk 0:00:19.3]}
33... hxg6 {[%clk 0:00:03.2]} 34. Rd6 {[%clk 0:00:19.2]} 1-0

[Event "*** Titled Tuesday Blitz"]
[Site "Chess.com"]
[Date "2019.10.01"]
[Round "10"]
[White "abubakrtagelsir"]
[Black "nitpicker"]
[Result "1-0"]
[WhiteElo "2382"]
[BlackElo "2255"]
[TimeControl "180+2"]
[EndTime "15:27:24 PDT"]
[Termination "abubakrtagelsir won on time"]

1. e4 {[%clk 0:02:58.4]} 1... e5 {[%clk 0:02:55.9]} 2. Nf3 {[%clk 0:02:57.1]}
2... Nc6 {[%clk 0:02:56.7]} 3. d4 {[%clk 0:02:57.3]} 3... exd4 {[%clk
0:02:57.1]} 4. Bc4 {[%clk 0:02:58.2]} 4... d6 {[%clk 0:02:52.2]} 5. Nxd4 {[%clk
0:02:57.5]} 5... Bd7 {[%clk 0:02:52.1]} 6. O-O {[%clk 0:02:57.5]} 6... Nf6
{[%clk 0:02:48.7]} 7. Re1 {[%clk 0:02:57]} 7... Be7 {[%clk 0:02:49.5]} 8. h3
{[%clk 0:02:53.7]} 8... O-O {[%clk 0:02:48.3]} 9. Bf4 {[%clk 0:02:53]} 9... Re8
{[%clk 0:02:46.3]} 10. Nc3 {[%clk 0:02:51.6]} 10... Bf8 {[%clk 0:02:46.6]} 11.
Nf3 {[%clk 0:02:46.6]} 11... Na5 {[%clk 0:02:16.2]} 12. Bf1 {[%clk 0:02:39.6]}
12... Be6 {[%clk 0:02:00.3]} 13. Bh2 {[%clk 0:02:30.4]} 13... Bc4 {[%clk
0:01:51.2]} 14. Bxc4 {[%clk 0:02:15.3]} 14... Nxc4 {[%clk 0:01:51.3]} 15. Qd4
{[%clk 0:02:16]} 15... Nb6 {[%clk 0:01:47.6]} 16. a4 {[%clk 0:02:08.7]} 16... a5
{[%clk 0:01:30]} 17. Rad1 {[%clk 0:02:07.2]} 17... Qd7 {[%clk 0:01:21.4]} 18. b3
{[%clk 0:01:58.9]} 18... Qc6 {[%clk 0:01:19.1]} 19. e5 {[%clk 0:01:42.1]} 19...
dxe5 {[%clk 0:01:18.7]} 20. Nxe5 {[%clk 0:01:42.5]} 20... Qc5 {[%clk 0:01:16.4]}
21. Qxc5 {[%clk 0:01:34.3]} 21... Bxc5 {[%clk 0:01:16.2]} 22. Nd3 {[%clk
0:01:35.2]} 22... Bb4 {[%clk 0:00:49.8]} 23. Nxb4 {[%clk 0:01:33.6]} 23... axb4
{[%clk 0:00:50.8]} 24. Nb5 {[%clk 0:01:34.5]} 24... c6 {[%clk 0:00:44.2]} 25.
Nd6 {[%clk 0:01:29.2]} 25... Rxe1+ {[%clk 0:00:27.5]} 26. Rxe1 {[%clk
0:01:29.2]} 26... Rd8 {[%clk 0:00:18.2]} 27. Nxb7 {[%clk 0:01:24.5]} 27... Rd2
{[%clk 0:00:18.1]} 28. a5 {[%clk 0:01:20.4]} 28... Na8 {[%clk 0:00:18.9]} 29.
Rc1 {[%clk 0:01:04.3]} 29... Nd5 {[%clk 0:00:17.7]} 30. Nc5 {[%clk 0:00:57.3]}
30... Nc3 {[%clk 0:00:17.4]} 31. Kf1 {[%clk 0:00:46.2]} 31... Na2 {[%clk
0:00:17.3]} 32. Bf4 {[%clk 0:00:44.5]} 32... Rd5 {[%clk 0:00:13.2]} 33. Re1
{[%clk 0:00:39]} 33... Kf8 {[%clk 0:00:07.6]} 34. a6 {[%clk 0:00:38.8]} 34... g5
{[%clk 0:00:05.3]} 35. Be3 {[%clk 0:00:28.4]} 1-0

[Event "*** Titled Tuesday Blitz"]
[Site "Chess.com"]
[Date "2019.10.01"]
[Round "10"]
[White "GadimbayliA"]
[Black "Vuk2000"]
[Result "1/2-1/2"]
[WhiteElo "2871"]
[BlackElo "2809"]
[TimeControl "180+2"]
[EndTime "15:27:28 PDT"]
[Termination "Game drawn by repetition"]

1. Nf3 {[%clk 0:03:01.9]} 1... Nf6 {[%clk 0:03:00.8]} 2. b3 {[%clk 0:03:03.2]}
2... e6 {[%clk 0:02:52.1]} 3. Bb2 {[%clk 0:03:04.7]} 3... d5 {[%clk 0:02:52.8]}
4. e3 {[%clk 0:03:05.9]} 4... Bd6 {[%clk 0:02:50.4]} 5. d4 {[%clk 0:03:06.4]}
5... O-O {[%clk 0:02:50.2]} 6. Nbd2 {[%clk 0:03:08.3]} 6... b6 {[%clk
0:02:47.3]} 7. Ne5 {[%clk 0:03:08]} 7... c5 {[%clk 0:02:46.2]} 8. f4 {[%clk
0:03:09.2]} 8... a5 {[%clk 0:02:38.6]} 9. a4 {[%clk 0:03:01.9]} 9... Qc7 {[%clk
0:02:30]} 10. Rc1 {[%clk 0:02:51.8]} 10... Ba6 {[%clk 0:02:23.3]} 11. Bxa6
{[%clk 0:02:46]} 11... Nxa6 {[%clk 0:02:25.2]} 12. O-O {[%clk 0:02:44.5]} 12...
Rac8 {[%clk 0:02:21.8]} 13. Qf3 {[%clk 0:02:36.4]} 13... cxd4 {[%clk 0:02:18.5]}
14. exd4 {[%clk 0:02:35.8]} 14... Nb4 {[%clk 0:02:11.9]} 15. c4 {[%clk
0:02:19.8]} 15... Qe7 {[%clk 0:02:01]} 16. g4 {[%clk 0:02:19]} 16... Bxe5 {[%clk
0:01:38.7]} 17. dxe5 {[%clk 0:02:13.6]} 17... Nd7 {[%clk 0:01:39.1]} 18. cxd5
{[%clk 0:02:13.5]} 18... Nxd5 {[%clk 0:01:38.6]} 19. Nc4 {[%clk 0:02:14.7]}
19... Nc5 {[%clk 0:01:33.1]} 20. f5 {[%clk 0:02:15.4]} 20... Qg5 {[%clk
0:01:28.4]} 21. Rce1 {[%clk 0:02:16.4]} 21... Nxb3 {[%clk 0:00:52.8]} 22. Bc1
{[%clk 0:02:16.7]} 22... Nxc1 {[%clk 0:00:53.3]} 23. Rxc1 {[%clk 0:02:18.6]}
23... h5 {[%clk 0:00:51.6]} 24. h3 {[%clk 0:02:16.4]} 24... hxg4 {[%clk
0:00:45.9]} 25. hxg4 {[%clk 0:02:18.3]} 25... Rxc4 {[%clk 0:00:29.6]} 26. Rxc4
{[%clk 0:02:14.9]} 26... Ne3 {[%clk 0:00:30.7]} 27. Rf4 {[%clk 0:02:02.8]} 27...
Nxf1 {[%clk 0:00:29.9]} 28. fxe6 {[%clk 0:02:01.9]} 28... Nd2 {[%clk 0:00:25.5]}
29. exf7+ {[%clk 0:01:58.8]} 29... Rxf7 {[%clk 0:00:19.3]} 30. Qa8+ {[%clk
0:01:59.6]} 30... Kh7 {[%clk 0:00:20.5]} 31. Qh1+ {[%clk 0:01:55.7]} 31... Kg8
{[%clk 0:00:14.7]} 32. Qa8+ {[%clk 0:01:56.7]} 32... Kh7 {[%clk 0:00:16.2]} 33.
Rxf7 {[%clk 0:01:57.8]} 33... Qe3+ {[%clk 0:00:11]} 34. Kg2 {[%clk 0:01:57.9]}
34... Ne4 {[%clk 0:00:11.8]} 35. Rf8 {[%clk 0:01:53.1]} 35... Qg3+ {[%clk
0:00:11.9]} 36. Kf1 {[%clk 0:01:50.9]} 36... Qd3+ {[%clk 0:00:12.7]} 37. Ke1
{[%clk 0:01:48.8]} 37... Qd2+ {[%clk 0:00:13]} 38. Kf1 {[%clk 0:01:50.2]} 38...
Qd1+ {[%clk 0:00:14.6]} 39. Kg2 {[%clk 0:01:50.5]} 39... Qxg4+ {[%clk
0:00:15.8]} 40. Kf1 {[%clk 0:01:42.2]} 40... Qd1+ {[%clk 0:00:16.9]} 41. Kg2
{[%clk 0:01:43.1]} 41... Qe2+ {[%clk 0:00:18.2]} 42. Kg1 {[%clk 0:01:41.2]}
42... Qe3+ {[%clk 0:00:18.7]} 43. Kf1 {[%clk 0:01:37.2]} 43... Qd3+ {[%clk
0:00:19.2]} 44. Kg1 {[%clk 0:01:33.9]} 44... Qg3+ {[%clk 0:00:19.8]} 45. Kf1
{[%clk 0:01:33.6]} 45... Qd3+ {[%clk 0:00:13.4]} 46. Kg1 {[%clk 0:01:34]} 46...
Qg3+ {[%clk 0:00:14.3]} 47. Kh1 {[%clk 0:01:35.3]} 47... Qh3+ {[%clk 0:00:06]}
48. Kg1 {[%clk 0:01:36]} 48... Qg4+ {[%clk 0:00:06.8]} 49. Kh2 {[%clk
0:01:23.2]} 49... Qg3+ {[%clk 0:00:07]} 50. Kh1 {[%clk 0:01:24.4]} 50... Qh3+
{[%clk 0:00:05.2]} 51. Kg1 {[%clk 0:01:25.2]} 51... Qg4+ {[%clk 0:00:06.5]} 52.
Kh2 {[%clk 0:01:22.9]} 52... Qh4+ {[%clk 0:00:06.9]} 53. Kg1 {[%clk 0:01:23]}
53... Qe1+ {[%clk 0:00:08]} 54. Kg2 {[%clk 0:01:23]} 54... Qg3+ {[%clk
0:00:09.2]} 55. Kh1 {[%clk 0:01:23.9]} 1/2-1/2

[Event "*** Titled Tuesday Blitz"]
[Site "Chess.com"]
[Date "2019.10.01"]
[Round "10"]
[White "joppie2"]
[Black "Zubrrr"]
[Result "1-0"]
[WhiteElo "2874"]
[BlackElo "2735"]
[TimeControl "180+2"]
[EndTime "15:27:34 PDT"]
[Termination "joppie2 won by checkmate"]

1. e4 {[%clk 0:03:01.9]} 1... c5 {[%clk 0:03:00.1]} 2. Nf3 {[%clk 0:02:59.8]}
2... Nf6 {[%clk 0:02:58.1]} 3. e5 {[%clk 0:02:55.2]} 3... Nd5 {[%clk 0:02:59.1]}
4. Nc3 {[%clk 0:02:53.9]} 4... Nxc3 {[%clk 0:02:17.4]} 5. dxc3 {[%clk
0:02:55.8]} 5... d5 {[%clk 0:02:14.5]} 6. exd6 {[%clk 0:02:54.9]} 6... exd6
{[%clk 0:02:04.8]} 7. Bc4 {[%clk 0:02:42.8]} 7... Be7 {[%clk 0:02:03.1]} 8. O-O
{[%clk 0:02:43.9]} 8... O-O {[%clk 0:02:03.9]} 9. Re1 {[%clk 0:02:43.5]} 9...
Nc6 {[%clk 0:02:04.6]} 10. Bf4 {[%clk 0:02:44.2]} 10... Bg4 {[%clk 0:02:00.1]}
11. h3 {[%clk 0:02:43.5]} 11... Bh5 {[%clk 0:01:59.2]} 12. Bd5 {[%clk 0:02:42]}
12... Re8 {[%clk 0:01:51.9]} 13. Qd2 {[%clk 0:02:36.4]} 13... Qb6 {[%clk
0:01:38.4]} 14. Re3 {[%clk 0:01:52.9]} 14... Bf8 {[%clk 0:01:32.8]} 15. b3
{[%clk 0:01:49.6]} 15... Rxe3 {[%clk 0:01:26.4]} 16. Qxe3 {[%clk 0:01:50.9]}
16... Ne7 {[%clk 0:01:14.3]} 17. Rd1 {[%clk 0:01:51.9]} 17... Nxd5 {[%clk
0:01:12.2]} 18. Rxd5 {[%clk 0:01:52.4]} 18... Bg6 {[%clk 0:01:13.9]} 19. Qd2
{[%clk 0:01:52.7]} 19... Be4 {[%clk 0:01:10.8]} 20. Rg5 {[%clk 0:01:47.3]} 20...
Bxf3 {[%clk 0:01:09.7]} 21. gxf3 {[%clk 0:01:49.2]} 21... Re8 {[%clk 0:01:07]}
22. Kg2 {[%clk 0:01:44.5]} 22... Re6 {[%clk 0:01:07.2]} 23. a4 {[%clk 0:01:45]}
23... Qc6 {[%clk 0:01:01.9]} 24. Rd5 {[%clk 0:01:42.4]} 24... Be7 {[%clk
0:00:52.6]} 25. Qd3 {[%clk 0:01:35.8]} 25... h6 {[%clk 0:00:37.1]} 26. Bg3
{[%clk 0:01:32.1]} 26... a6 {[%clk 0:00:36.4]} 27. c4 {[%clk 0:01:32.7]} 27...
g6 {[%clk 0:00:32.9]} 28. f4 {[%clk 0:01:32]} 28... f5 {[%clk 0:00:29.6]} 29.
Qf3 {[%clk 0:01:24.1]} 29... Kf7 {[%clk 0:00:27.9]} 30. Qd1 {[%clk 0:01:10.2]}
30... Bf6 {[%clk 0:00:24.1]} 31. Qd3 {[%clk 0:01:07.5]} 31... Ke7 {[%clk
0:00:21.3]} 32. f3 {[%clk 0:01:08.3]} 32... Kd7 {[%clk 0:00:21.5]} 33. Bf2
{[%clk 0:01:09.6]} 33... Ke7 {[%clk 0:00:22.6]} 34. c3 {[%clk 0:01:09.7]} 34...
Kf7 {[%clk 0:00:22.8]} 35. b4 {[%clk 0:01:09.8]} 35... Qxa4 {[%clk 0:00:21.5]}
36. bxc5 {[%clk 0:01:09.8]} 36... dxc5 {[%clk 0:00:23.4]} 37. Rd7+ {[%clk
0:01:07.6]} 37... Re7 {[%clk 0:00:20]} 38. Qd5+ {[%clk 0:01:08.6]} 38... Kg7
{[%clk 0:00:18.1]} 39. Rd8 {[%clk 0:01:08.2]} 39... Rf7 {[%clk 0:00:17.2]} 40.
Rc8 {[%clk 0:00:58.9]} 40... Bxc3 {[%clk 0:00:16.8]} 41. Qd8 {[%clk 0:00:53.7]}
41... g5 {[%clk 0:00:04.6]} 42. fxg5 {[%clk 0:00:49.8]} 42... Kg6 {[%clk
0:00:03.1]} 43. h4 {[%clk 0:00:42.1]} 43... Kh5 {[%clk 0:00:02.6]} 44. gxh6
{[%clk 0:00:37]} 44... Qxc4 {[%clk 0:00:03.4]} 45. Qg5# {[%clk 0:00:37.4]} 1-0

[Event "*** Titled Tuesday Blitz"]
[Site "Chess.com"]
[Date "2019.10.01"]
[Round "10"]
[White "WorldChampionBulletChess"]
[Black "aranibos"]
[Result "1-0"]
[WhiteElo "2067"]
[BlackElo "2143"]
[TimeControl "180+2"]
[EndTime "15:27:49 PDT"]
[Termination "WorldChampionBulletChess won by resignation"]

1. d4 {[%clk 0:03:01.9]} 1... Nf6 {[%clk 0:02:52.9]} 2. c4 {[%clk 0:03:03.1]}
2... c5 {[%clk 0:02:53.3]} 3. d5 {[%clk 0:03:03.3]} 3... b5 {[%clk 0:02:53.9]}
4. cxb5 {[%clk 0:03:05.2]} 4... a6 {[%clk 0:02:54.5]} 5. bxa6 {[%clk 0:03:00.5]}
5... Bxa6 {[%clk 0:02:54.5]} 6. Nc3 {[%clk 0:02:59.4]} 6... g6 {[%clk
0:02:54.8]} 7. g3 {[%clk 0:02:53]} 7... Bg7 {[%clk 0:02:54.4]} 8. Bg2 {[%clk
0:02:53.8]} 8... d6 {[%clk 0:02:55.3]} 9. Nf3 {[%clk 0:02:54.3]} 9... O-O {[%clk
0:02:56.4]} 10. O-O {[%clk 0:02:54.3]} 10... Nbd7 {[%clk 0:02:56.8]} 11. Nd2
{[%clk 0:02:54.2]} 11... Nb6 {[%clk 0:02:43.6]} 12. f4 {[%clk 0:02:43.3]} 12...
Ra7 {[%clk 0:02:30.9]} 13. f5 {[%clk 0:02:43.6]} 13... Ng4 {[%clk 0:02:21.1]}
14. Nde4 {[%clk 0:02:33.6]} 14... Bd4+ {[%clk 0:02:13.9]} 15. Kh1 {[%clk
0:02:34.6]} 15... Ne3 {[%clk 0:02:03.5]} 16. Bxe3 {[%clk 0:02:34.4]} 16... Bxe3
{[%clk 0:02:04.2]} 17. Qc2 {[%clk 0:01:27.7]} 17... Bd4 {[%clk 0:01:53.7]} 18.
fxg6 {[%clk 0:01:13.5]} 18... hxg6 {[%clk 0:01:51.1]} 19. Ng5 {[%clk 0:01:11]}
19... Nc4 {[%clk 0:01:42.8]} 20. Qe4 {[%clk 0:01:00.3]} 20... Bf6 {[%clk
0:01:29.8]} 21. Ne6 {[%clk 0:00:41.4]} 21... Nd2 {[%clk 0:01:00]} 22. Nxd8
{[%clk 0:00:32]} 22... Nxe4 {[%clk 0:00:59.3]} 23. Nxe4 {[%clk 0:00:33]} 23...
Rxd8 {[%clk 0:00:57.3]} 24. Nxf6+ {[%clk 0:00:33.8]} 24... exf6 {[%clk
0:00:57.8]} 25. Rxf6 {[%clk 0:00:35.7]} 25... Bxe2 {[%clk 0:00:57.9]} 26. a3
{[%clk 0:00:33.3]} 26... Kg7 {[%clk 0:00:58]} 27. Rf2 {[%clk 0:00:32.9]} 27...
Bc4 {[%clk 0:00:56.8]} 28. Re1 {[%clk 0:00:31.3]} 28... Bb3 {[%clk 0:00:44.1]}
29. Re3 {[%clk 0:00:31.9]} 29... c4 {[%clk 0:00:44.3]} 30. Ref3 {[%clk
0:00:33.2]} 30... Re8 {[%clk 0:00:42.9]} 31. h4 {[%clk 0:00:32.7]} 31... Bd1
{[%clk 0:00:38.3]} 32. Rf4 {[%clk 0:00:32.9]} 32... Be2 {[%clk 0:00:37.3]} 33.
Kh2 {[%clk 0:00:32.8]} 33... Bd3 {[%clk 0:00:29.3]} 34. Bf1 {[%clk 0:00:33.3]}
34... Re5 {[%clk 0:00:26.5]} 35. Bxd3 {[%clk 0:00:33.3]} 35... cxd3 {[%clk
0:00:27.4]} 36. Rd4 {[%clk 0:00:34.9]} 36... Ra5 {[%clk 0:00:28.1]} 37. Rxd3
{[%clk 0:00:35.3]} 37... Rexd5 {[%clk 0:00:28.7]} 38. Rxd5 {[%clk 0:00:35.4]}
38... Rxd5 {[%clk 0:00:29.6]} 39. b4 {[%clk 0:00:36.2]} 39... Rb5 {[%clk
0:00:24.5]} 40. Rb2 {[%clk 0:00:36.1]} 40... d5 {[%clk 0:00:25.3]} 41. a4 {[%clk
0:00:37.4]} 41... Rb7 {[%clk 0:00:25.4]} 42. a5 {[%clk 0:00:38.4]} 42... d4
{[%clk 0:00:24.1]} 43. a6 {[%clk 0:00:38.3]} 43... Ra7 {[%clk 0:00:21]} 44. b5
{[%clk 0:00:39.5]} 44... d3 {[%clk 0:00:21.8]} 45. Ra2 {[%clk 0:00:38.2]} 45...
Kf6 {[%clk 0:00:16.2]} 46. b6 {[%clk 0:00:39.4]} 46... d2 {[%clk 0:00:16.9]} 47.
bxa7 {[%clk 0:00:30.1]} 47... d1=Q {[%clk 0:00:17.5]} 48. a8=Q {[%clk
0:00:31.5]} 48... Qb3 {[%clk 0:00:16.3]} 49. Qg2 {[%clk 0:00:30.2]} 1-0

[Event "*** Titled Tuesday Blitz"]
[Site "Chess.com"]
[Date "2019.10.01"]
[Round "10"]
[White "eljanov"]
[Black "Rodalquilar"]
[Result "0-1"]
[WhiteElo "2792"]
[BlackElo "2688"]
[TimeControl "180+2"]
[EndTime "15:27:56 PDT"]
[Termination "Rodalquilar won by resignation"]

1. Nf3 {[%clk 0:03:01.9]} 1... d5 {[%clk 0:03:00.6]} 2. g3 {[%clk 0:03:03]} 2...
Nf6 {[%clk 0:03:02.2]} 3. Bg2 {[%clk 0:03:04.2]} 3... Bf5 {[%clk 0:03:02.8]} 4.
O-O {[%clk 0:03:03.1]} 4... e6 {[%clk 0:03:04.3]} 5. c4 {[%clk 0:03:04.1]} 5...
c6 {[%clk 0:03:05.3]} 6. Qb3 {[%clk 0:03:04.7]} 6... Qb6 {[%clk 0:03:05.9]} 7.
d3 {[%clk 0:03:06]} 7... dxc4 {[%clk 0:02:57.2]} 8. Qxc4 {[%clk 0:03:06]} 8...
Nbd7 {[%clk 0:02:57.7]} 9. Nbd2 {[%clk 0:03:05]} 9... Be7 {[%clk 0:02:57.9]} 10.
Qc2 {[%clk 0:03:06]} 10... O-O {[%clk 0:02:58.2]} 11. Nc4 {[%clk 0:03:07.5]}
11... Qd8 {[%clk 0:02:57.7]} 12. Bd2 {[%clk 0:03:02.4]} 12... h6 {[%clk
0:02:58.3]} 13. b4 {[%clk 0:03:00.1]} 13... Nb6 {[%clk 0:02:59]} 14. Na5 {[%clk
0:02:59.5]} 14... Qc8 {[%clk 0:02:50]} 15. e4 {[%clk 0:02:55.9]} 15... Bh7
{[%clk 0:02:51.1]} 16. Rfc1 {[%clk 0:02:44.3]} 16... Rd8 {[%clk 0:02:52]} 17.
Rab1 {[%clk 0:02:42.8]} 17... Qd7 {[%clk 0:02:38.1]} 18. Ne5 {[%clk 0:02:43]}
18... Qc7 {[%clk 0:02:39.4]} 19. Bc3 {[%clk 0:02:31.3]} 19... Bd6 {[%clk
0:02:27.4]} 20. f4 {[%clk 0:02:28.3]} 20... Nbd7 {[%clk 0:02:15.9]} 21. Nac4
{[%clk 0:02:14.4]} 21... Bf8 {[%clk 0:02:11.5]} 22. Nf3 {[%clk 0:02:01.6]} 22...
c5 {[%clk 0:02:03.4]} 23. b5 {[%clk 0:01:58.7]} 23... Nb6 {[%clk 0:02:04.8]} 24.
Bxf6 {[%clk 0:01:45.7]} 24... gxf6 {[%clk 0:02:02.9]} 25. a4 {[%clk 0:01:43.2]}
25... Nxc4 {[%clk 0:02:02.8]} 26. Qxc4 {[%clk 0:01:43.4]} 26... Rd7 {[%clk
0:01:57.7]} 27. Bf1 {[%clk 0:01:40.5]} 27... Rad8 {[%clk 0:01:58.1]} 28. Qc3
{[%clk 0:01:14.7]} 28... Bg7 {[%clk 0:01:54.6]} 29. a5 {[%clk 0:01:16.1]} 29...
b6 {[%clk 0:01:54.3]} 30. Ra1 {[%clk 0:01:08.6]} 30... Bg6 {[%clk 0:01:49.4]}
31. h3 {[%clk 0:00:59]} 31... Bh5 {[%clk 0:01:45.1]} 32. Nh2 {[%clk 0:00:55.3]}
32... f5 {[%clk 0:01:25.8]} 33. e5 {[%clk 0:00:56.1]} 33... Rd4 {[%clk
0:01:26.9]} 34. axb6 {[%clk 0:00:43]} 34... axb6 {[%clk 0:01:27.7]} 35. Qb2
{[%clk 0:00:34.2]} 35... Kh8 {[%clk 0:01:25.1]} 36. Rc4 {[%clk 0:00:34.5]} 36...
R4d5 {[%clk 0:01:04.9]} 37. Ra6 {[%clk 0:00:29.7]} 37... Rg8 {[%clk 0:01:05.1]}
38. Kf2 {[%clk 0:00:28.9]} 38... Rxe5 {[%clk 0:01:03.5]} 39. fxe5 {[%clk
0:00:24.2]} 39... Bxe5 {[%clk 0:01:05.4]} 40. Ra7 {[%clk 0:00:21.1]} 40... Qd6
{[%clk 0:00:26.4]} 41. Rd7 {[%clk 0:00:21.1]} 41... Qb8 {[%clk 0:00:27.2]} 42.
Qc1 {[%clk 0:00:19.2]} 42... Bxg3+ {[%clk 0:00:25.5]} 43. Ke3 {[%clk 0:00:20.5]}
43... Bxh2 {[%clk 0:00:12.8]} 44. Qe1 {[%clk 0:00:19.6]} 44... Qe5+ {[%clk
0:00:10.5]} 45. Kd2 {[%clk 0:00:20.8]} 45... Qb2+ {[%clk 0:00:11.5]} 46. Rc2
{[%clk 0:00:17.5]} 46... Bf4+ {[%clk 0:00:12.3]} 0-1

[Event "*** Titled Tuesday Blitz"]
[Site "Chess.com"]
[Date "2019.10.01"]
[Round "10"]
[White "vovachesss"]
[Black "kreonx"]
[Result "1-0"]
[WhiteElo "2524"]
[BlackElo "2285"]
[TimeControl "180+2"]
[EndTime "15:28:10 PDT"]
[Termination "vovachesss won by resignation"]

1. f4 {[%clk 0:03:01.9]} 1... c6 {[%clk 0:03:00.5]} 2. Nf3 {[%clk 0:02:58.9]}
2... d5 {[%clk 0:03:00.9]} 3. g3 {[%clk 0:02:59.2]} 3... g6 {[%clk 0:03:01.9]}
4. Bg2 {[%clk 0:03:00.5]} 4... Bg7 {[%clk 0:03:03.5]} 5. O-O {[%clk 0:03:01.8]}
5... Nf6 {[%clk 0:03:05]} 6. d3 {[%clk 0:03:02]} 6... O-O {[%clk 0:03:06.4]} 7.
c3 {[%clk 0:03:03.6]} 7... Nbd7 {[%clk 0:03:03.5]} 8. Qc2 {[%clk 0:03:05.1]}
8... Re8 {[%clk 0:03:03.1]} 9. e4 {[%clk 0:03:05.9]} 9... dxe4 {[%clk
0:03:03.6]} 10. dxe4 {[%clk 0:03:06.7]} 10... e5 {[%clk 0:03:05.1]} 11. Nbd2
{[%clk 0:02:46]} 11... Qb6+ {[%clk 0:02:58]} 12. Kh1 {[%clk 0:02:44.7]} 12...
exf4 {[%clk 0:02:58.4]} 13. gxf4 {[%clk 0:02:44.6]} 13... Ng4 {[%clk 0:02:56.5]}
14. Nc4 {[%clk 0:02:45]} 14... Qc5 {[%clk 0:02:57.3]} 15. b3 {[%clk 0:02:29]}
15... b5 {[%clk 0:02:57.3]} 16. Ba3 {[%clk 0:02:28.8]} 16... Qh5 {[%clk
0:02:49.9]} 17. Nd6 {[%clk 0:02:27.6]} 17... Rd8 {[%clk 0:02:35.1]} 18. Rae1
{[%clk 0:02:15.9]} 18... Ndf6 {[%clk 0:02:20.9]} 19. c4 {[%clk 0:01:11.4]} 19...
b4 {[%clk 0:01:53.1]} 20. Bxb4 {[%clk 0:01:11.1]} 20... c5 {[%clk 0:01:53.7]}
21. Nxc8 {[%clk 0:01:12]} 21... Raxc8 {[%clk 0:01:40.8]} 22. Ba5 {[%clk
0:00:57.9]} 22... Rd7 {[%clk 0:01:28.4]} 23. e5 {[%clk 0:00:53.6]} 23... Ne8
{[%clk 0:01:09.1]} 24. h3 {[%clk 0:00:54.2]} 24... Nc7 {[%clk 0:01:07.3]} 25.
Bxc7 {[%clk 0:00:28.2]} 25... Rcxc7 {[%clk 0:01:07.6]} 26. Ng5 {[%clk
0:00:29.7]} 26... Rd4 {[%clk 0:00:50.4]} 27. Qe2 {[%clk 0:00:18]} 27... Nh6
{[%clk 0:00:45.8]} 28. Qxh5 {[%clk 0:00:18.4]} 28... gxh5 {[%clk 0:00:47.2]} 29.
f5 {[%clk 0:00:17.4]} 29... Rd2 {[%clk 0:00:35.3]} 30. f6 {[%clk 0:00:16.4]}
30... Bf8 {[%clk 0:00:35.1]} 31. Bd5 {[%clk 0:00:14.2]} 31... Rd7 {[%clk
0:00:33.6]} 32. Rg1 {[%clk 0:00:13.4]} 32... Kh8 {[%clk 0:00:24.7]} 33. e6
{[%clk 0:00:10.2]} 33... fxe6 {[%clk 0:00:21.2]} 34. Nxe6 {[%clk 0:00:10]} 34...
Bd6 {[%clk 0:00:21]} 35. Rg2 {[%clk 0:00:06.4]} 35... Rd3 {[%clk 0:00:20.7]} 36.
Ng5 {[%clk 0:00:03.9]} 36... Rd8 {[%clk 0:00:16.9]} 37. Kg1 {[%clk 0:00:03.9]}
37... Bf4 {[%clk 0:00:16.2]} 38. Nf7+ {[%clk 0:00:04.4]} 38... Nxf7 {[%clk
0:00:15.8]} 39. Bxf7 {[%clk 0:00:06.3]} 39... Be3+ {[%clk 0:00:07.1]} 40. Kh2
{[%clk 0:00:07.9]} 40... Rf8 {[%clk 0:00:07.9]} 41. Bd5 {[%clk 0:00:07.4]} 41...
h6 {[%clk 0:00:04.3]} 42. f7 {[%clk 0:00:08.3]} 42... Bf4+ {[%clk 0:00:05.1]}
43. Kg1 {[%clk 0:00:09.7]} 43... Be3+ {[%clk 0:00:06.1]} 44. Rxe3 {[%clk
0:00:11.2]} 44... Rxe3 {[%clk 0:00:07.1]} 45. Rg8+ {[%clk 0:00:12.9]} 45... Kh7
{[%clk 0:00:06.7]} 46. Rxf8 {[%clk 0:00:14.8]} 1-0